[Event "*** Titled Tuesday Blitz"]
[Site "Chess.com"]
[Date "2020.11.03"]
[Round "7"]
[White "geordie_derraugh"]
[Black "ciucas1892"]
[Result "1-0"]
[WhiteElo "2424"]
[BlackElo "2264"]
[TimeControl "180+1"]
[EndTime "11:21:22 PST"]
[Termination "geordie_derraugh won by checkmate"]

1. e4 {[%clk 0:03:00.9]} 1... c5 {[%clk 0:02:59.1]} 2. Nf3 {[%clk 0:03:00.6]}
2... Nc6 {[%clk 0:02:58.8]} 3. Bb5 {[%clk 0:03:00.3]} 3... g6 {[%clk 0:02:59]}
4. Bxc6 {[%clk 0:02:59.8]} 4... bxc6 {[%clk 0:02:58.8]} 5. O-O {[%clk
0:02:58.9]} 5... Bg7 {[%clk 0:02:50.1]} 6. Re1 {[%clk 0:02:58.4]} 6... Nh6
{[%clk 0:02:45.5]} 7. c3 {[%clk 0:02:54]} 7... O-O {[%clk 0:02:41.4]} 8. d4
{[%clk 0:02:53.8]} 8... cxd4 {[%clk 0:02:35.8]} 9. cxd4 {[%clk 0:02:54.7]} 9...
d5 {[%clk 0:02:36.4]} 10. Nc3 {[%clk 0:02:47.4]} 10... Bg4 {[%clk 0:02:21.6]}
11. exd5 {[%clk 0:02:44]} 11... cxd5 {[%clk 0:02:19.5]} 12. Bg5 {[%clk
0:02:43.5]} 12... Nf5 {[%clk 0:02:15.6]} 13. h3 {[%clk 0:02:16]} 13... Bxf3
{[%clk 0:02:11.4]} 14. Qxf3 {[%clk 0:02:16.9]} 14... Nxd4 {[%clk 0:02:09.9]} 15.
Qd3 {[%clk 0:02:17]} 15... Qa5 {[%clk 0:01:48.4]} 16. Bxe7 {[%clk 0:02:04.5]}
16... Rfe8 {[%clk 0:01:46.6]} 17. Bg5 {[%clk 0:01:47]} 17... Nf5 {[%clk
0:00:57]} 18. a3 {[%clk 0:00:55.4]} 18... d4 {[%clk 0:00:48.9]} 19. b4 {[%clk
0:00:55.1]} 19... Qc7 {[%clk 0:00:39]} 20. Ne4 {[%clk 0:00:44]} 20... Qb6 {[%clk
0:00:26.1]} 21. Rac1 {[%clk 0:00:42.5]} 21... Rac8 {[%clk 0:00:22.6]} 22. g4
{[%clk 0:00:34.7]} 22... Nd6 {[%clk 0:00:17.9]} 23. Nf6+ {[%clk 0:00:26.5]}
23... Bxf6 {[%clk 0:00:18.1]} 24. Bxf6 {[%clk 0:00:27.4]} 24... Rxe1+ {[%clk
0:00:16.9]} 25. Rxe1 {[%clk 0:00:26.7]} 25... Nb5 {[%clk 0:00:08.3]} 26. g5
{[%clk 0:00:21.1]} 26... Qc6 {[%clk 0:00:04.3]} 27. a4 {[%clk 0:00:18]} 27...
Nd6 {[%clk 0:00:02.4]} 28. Qxd4 {[%clk 0:00:16.4]} 28... Nf5 {[%clk 0:00:03.3]}
29. Qe5 {[%clk 0:00:15.9]} 29... a6 {[%clk 0:00:02.5]} 30. b5 {[%clk 0:00:15.5]}
30... axb5 {[%clk 0:00:03.4]} 31. axb5 {[%clk 0:00:16.1]} 31... Qd7 {[%clk
0:00:03.9]} 32. b6 {[%clk 0:00:16]} 32... Nd6 {[%clk 0:00:03.7]} 33. Rd1 {[%clk
0:00:12.4]} 33... Qxh3 {[%clk 0:00:02.6]} 34. Qxd6 {[%clk 0:00:09.4]} 34... Qg4+
{[%clk 0:00:02.4]} 35. Kf1 {[%clk 0:00:09.8]} 35... Qh3+ {[%clk 0:00:02.7]} 36.
Ke2 {[%clk 0:00:07.9]} 36... Re8+ {[%clk 0:00:03.2]} 37. Be5 {[%clk 0:00:07.9]}
37... Qg4+ {[%clk 0:00:03.3]} 38. Kf1 {[%clk 0:00:05.7]} 38... Qh3+ {[%clk
0:00:03.3]} 39. Ke2 {[%clk 0:00:05.8]} 39... Qg4+ {[%clk 0:00:03.7]} 40. f3
{[%clk 0:00:06.5]} 40... Qg2+ {[%clk 0:00:03.8]} 41. Ke1 {[%clk 0:00:05.3]}
41... Qg1+ {[%clk 0:00:03.9]} 42. Ke2 {[%clk 0:00:05.4]} 42... Qg2+ {[%clk
0:00:04.8]} 43. Ke3 {[%clk 0:00:06.1]} 43... Qxg5+ {[%clk 0:00:04.7]} 44. f4
{[%clk 0:00:06.6]} 44... Qg3+ {[%clk 0:00:05]} 45. Ke4 {[%clk 0:00:07.2]} 45...
Qg2+ {[%clk 0:00:05.1]} 46. Kd4 {[%clk 0:00:07.1]} 46... Qf2+ {[%clk 0:00:03.6]}
47. Kd5 {[%clk 0:00:07.3]} 47... Qf3+ {[%clk 0:00:03.6]} 48. Kc5 {[%clk
0:00:07.5]} 48... Rb8 {[%clk 0:00:03.5]} 49. Qxb8# {[%clk 0:00:07.3]} 1-0

[Event "*** Titled Tuesday Blitz"]
[Site "Chess.com"]
[Date "2020.11.03"]
[Round "7"]
[White "Walter_White_Poland"]
[Black "Michaelson_11"]
[Result "1-0"]
[WhiteElo "2358"]
[BlackElo "2152"]
[TimeControl "180+1"]
[EndTime "11:21:22 PST"]
[Termination "Walter_White_Poland won by resignation"]

1. e4 {[%clk 0:03:00.9]} 1... c5 {[%clk 0:02:59.8]} 2. Nf3 {[%clk 0:03:00.4]}
2... Nc6 {[%clk 0:03:00.7]} 3. d4 {[%clk 0:03:00.4]} 3... cxd4 {[%clk
0:03:01.6]} 4. Nxd4 {[%clk 0:03:01]} 4... g6 {[%clk 0:03:02.5]} 5. c4 {[%clk
0:03:00.3]} 5... Nf6 {[%clk 0:03:02.4]} 6. Nc3 {[%clk 0:02:59.9]} 6... d6 {[%clk
0:03:02.2]} 7. Be2 {[%clk 0:02:58.5]} 7... Nxd4 {[%clk 0:03:02.5]} 8. Qxd4
{[%clk 0:02:58.7]} 8... Bg7 {[%clk 0:03:02.8]} 9. Bg5 {[%clk 0:02:58.6]} 9...
O-O {[%clk 0:03:03]} 10. Qe3 {[%clk 0:02:57.9]} 10... Qa5 {[%clk 0:02:58.4]} 11.
O-O {[%clk 0:02:55.5]} 11... Be6 {[%clk 0:02:53.5]} 12. Rac1 {[%clk 0:02:49.7]}
12... Rfc8 {[%clk 0:02:50.7]} 13. b3 {[%clk 0:02:49.5]} 13... a6 {[%clk
0:02:50.8]} 14. f4 {[%clk 0:02:44.4]} 14... h6 {[%clk 0:02:43.5]} 15. Bh4 {[%clk
0:02:38.3]} 15... b5 {[%clk 0:02:41.1]} 16. f5 {[%clk 0:02:33.1]} 16... Bd7
{[%clk 0:02:35]} 17. fxg6 {[%clk 0:02:24.6]} 17... fxg6 {[%clk 0:02:31.8]} 18.
Bxf6 {[%clk 0:02:15.7]} 18... exf6 {[%clk 0:02:18.5]} 19. Nd5 {[%clk 0:02:11.7]}
19... Kf7 {[%clk 0:02:07.8]} 20. Nb6 {[%clk 0:01:46.3]} 20... Be6 {[%clk
0:01:59.1]} 21. Nxa8 {[%clk 0:01:43.8]} 21... Rxa8 {[%clk 0:02:00]} 22. c5
{[%clk 0:01:37.4]} 22... dxc5 {[%clk 0:01:54.2]} 23. Rxc5 {[%clk 0:01:22.5]}
23... Qxa2 {[%clk 0:01:49.8]} 24. Rc7+ {[%clk 0:01:13.7]} 24... Kg8 {[%clk
0:01:48.3]} 25. Qc3 {[%clk 0:00:26.3]} 25... Rf8 {[%clk 0:01:30.7]} 26. b4
{[%clk 0:00:21.9]} 26... Rf7 {[%clk 0:01:20.2]} 27. Rxf7 {[%clk 0:00:21.1]}
27... Bxf7 {[%clk 0:01:21.1]} 28. Bf3 {[%clk 0:00:20.5]} 28... Qc4 {[%clk
0:01:04.4]} 29. Qxc4 {[%clk 0:00:20.2]} 29... bxc4 {[%clk 0:01:04.5]} 30. Rc1
{[%clk 0:00:19.9]} 30... f5 {[%clk 0:00:58.4]} 31. exf5 {[%clk 0:00:19.1]} 31...
gxf5 {[%clk 0:00:58.5]} 32. Be2 {[%clk 0:00:18.7]} 32... c3 {[%clk 0:00:58.6]}
33. Bd3 {[%clk 0:00:18.2]} 33... Bd4+ {[%clk 0:00:50.3]} 34. Kf1 {[%clk
0:00:17.6]} 34... f4 {[%clk 0:00:50.3]} 35. Bxa6 {[%clk 0:00:17.1]} 35... Kg7
{[%clk 0:00:49.7]} 36. Bd3 {[%clk 0:00:16.3]} 36... Kf6 {[%clk 0:00:49.5]} 37.
b5 {[%clk 0:00:16.4]} 37... Bd5 {[%clk 0:00:47.1]} 38. Be2 {[%clk 0:00:14.9]}
38... Ke5 {[%clk 0:00:45.6]} 39. b6 {[%clk 0:00:14.3]} 39... Kd6 {[%clk
0:00:40.4]} 40. Bf3 {[%clk 0:00:13.8]} 40... Bc4+ {[%clk 0:00:26.4]} 41. Be2
{[%clk 0:00:13.7]} 41... Bd5 {[%clk 0:00:25.5]} 42. Bf3 {[%clk 0:00:11.8]} 42...
Bc4+ {[%clk 0:00:20.1]} 43. Be2 {[%clk 0:00:11.8]} 43... Be6 {[%clk 0:00:19]}
44. Rd1 {[%clk 0:00:11.3]} 44... Ke5 {[%clk 0:00:17.5]} 45. b7 {[%clk
0:00:10.2]} 45... Bd5 {[%clk 0:00:10.4]} 46. b8=Q+ {[%clk 0:00:09]} 1-0

[Event "*** Titled Tuesday Blitz"]
[Site "Chess.com"]
[Date "2020.11.03"]
[Round "7"]
[White "maicolbenavides"]
[Black "WonderChampion"]
[Result "0-1"]
[WhiteElo "2170"]
[BlackElo "2036"]
[TimeControl "180+1"]
[EndTime "11:21:22 PST"]
[Termination "WonderChampion won on time"]

1. e4 {[%clk 0:03:00.9]} 1... c5 {[%clk 0:02:58.5]} 2. Nf3 {[%clk 0:02:38.5]}
2... g6 {[%clk 0:02:57.4]} 3. d4 {[%clk 0:02:37.5]} 3... cxd4 {[%clk 0:02:58.3]}
4. Nxd4 {[%clk 0:02:38.3]} 4... Nc6 {[%clk 0:02:57.9]} 5. Nc3 {[%clk 0:02:30.1]}
5... Bg7 {[%clk 0:02:54.9]} 6. Be3 {[%clk 0:02:12.3]} 6... Nf6 {[%clk
0:02:53.4]} 7. Bc4 {[%clk 0:02:05.7]} 7... O-O {[%clk 0:02:50.6]} 8. O-O {[%clk
0:02:04.5]} 8... d6 {[%clk 0:02:49.5]} 9. h3 {[%clk 0:02:02.3]} 9... Bd7 {[%clk
0:02:46.8]} 10. f4 {[%clk 0:01:41.5]} 10... Nxd4 {[%clk 0:02:42.5]} 11. Bxd4
{[%clk 0:01:38.6]} 11... Bc6 {[%clk 0:02:37.9]} 12. Qd3 {[%clk 0:01:27.7]} 12...
Qc7 {[%clk 0:02:35.3]} 13. Rae1 {[%clk 0:01:23.5]} 13... e5 {[%clk 0:02:30.6]}
14. fxe5 {[%clk 0:00:53.4]} 14... dxe5 {[%clk 0:02:31.5]} 15. Bf2 {[%clk
0:00:53.5]} 15... Rfd8 {[%clk 0:02:29.3]} 16. Qf3 {[%clk 0:00:52.6]} 16... a6
{[%clk 0:02:17.6]} 17. Bh4 {[%clk 0:00:51]} 17... Qb6+ {[%clk 0:02:08]} 18. Kh1
{[%clk 0:00:43.6]} 18... Rd6 {[%clk 0:01:56.7]} 19. Qg3 {[%clk 0:00:25.1]} 19...
Qc5 {[%clk 0:01:44.8]} 20. Bb3 {[%clk 0:00:20.5]} 20... Re8 {[%clk 0:01:24.2]}
21. Bg5 {[%clk 0:00:19.8]} 21... h6 {[%clk 0:01:20.9]} 22. Be3 {[%clk 0:00:17]}
22... Qa5 {[%clk 0:01:16.4]} 23. Qh4 {[%clk 0:00:15.9]} 23... g5 {[%clk
0:01:12.7]} 24. Qg3 {[%clk 0:00:12.2]} 24... Qd8 {[%clk 0:01:11.5]} 25. h4
{[%clk 0:00:09.8]} 25... gxh4 {[%clk 0:01:06.9]} 26. Qxh4 {[%clk 0:00:10.7]}
26... Kh7 {[%clk 0:00:58]} 27. Bxf7 {[%clk 0:00:08.3]} 27... Re7 {[%clk
0:00:56.6]} 28. Bb3 {[%clk 0:00:06.7]} 28... Qf8 {[%clk 0:00:47.6]} 29. Rf5
{[%clk 0:00:05.6]} 29... Bd7 {[%clk 0:00:36.6]} 30. Rf2 {[%clk 0:00:05.3]} 30...
Qc8 {[%clk 0:00:25.5]} 31. Ref1 {[%clk 0:00:04.9]} 31... Ng4 {[%clk 0:00:24.1]}
32. Rf7 {[%clk 0:00:03]} 32... Rxf7 {[%clk 0:00:21.4]} 33. Rxf7 {[%clk
0:00:03.9]} 33... Nxe3 {[%clk 0:00:19.6]} 34. Qg3 {[%clk 0:00:04]} 34... Ng4
{[%clk 0:00:08.8]} 35. Nd5 {[%clk 0:00:02.8]} 35... Qe8 {[%clk 0:00:08.4]} 36.
Rf3 {[%clk 0:00:02]} 36... Qe6 {[%clk 0:00:07.9]} 37. Ne3 {[%clk 0:00:02]} 37...
Qg6 {[%clk 0:00:07.2]} 38. Nf5 {[%clk 0:00:02]} 38... Bxf5 {[%clk 0:00:06.8]}
39. exf5 {[%clk 0:00:02.5]} 39... Qg5 {[%clk 0:00:07.7]} 40. f6 {[%clk
0:00:02.1]} 40... Rd1+ {[%clk 0:00:07.7]} 0-1

[Event "*** Titled Tuesday Blitz"]
[Site "Chess.com"]
[Date "2020.11.03"]
[Round "7"]
[White "ailime26"]
[Black "Happy1712Drummer"]
[Result "1-0"]
[WhiteElo "1915"]
[BlackElo "2176"]
[TimeControl "180+1"]
[EndTime "11:21:24 PST"]
[Termination "ailime26 won by checkmate"]

1. e4 {[%clk 0:02:51.6]} 1... c6 {[%clk 0:02:58.2]} 2. d4 {[%clk 0:02:51.7]}
2... d5 {[%clk 0:02:56.8]} 3. exd5 {[%clk 0:02:52.3]} 3... cxd5 {[%clk
0:02:55.2]} 4. Bd3 {[%clk 0:02:53.2]} 4... Nc6 {[%clk 0:02:48]} 5. c3 {[%clk
0:02:53.3]} 5... Qc7 {[%clk 0:02:46.5]} 6. Ne2 {[%clk 0:02:51.7]} 6... e5 {[%clk
0:02:28.7]} 7. dxe5 {[%clk 0:02:49.8]} 7... Nxe5 {[%clk 0:02:23.6]} 8. Bb5+
{[%clk 0:02:49.9]} 8... Bd7 {[%clk 0:02:20.1]} 9. Qxd5 {[%clk 0:02:49.8]} 9...
Nf6 {[%clk 0:02:18.6]} 10. Bxd7+ {[%clk 0:02:47.5]} 10... Nexd7 {[%clk
0:02:16.2]} 11. Qd3 {[%clk 0:02:44]} 11... Ne5 {[%clk 0:02:15.1]} 12. Qb5+
{[%clk 0:02:40.1]} 12... Nc6 {[%clk 0:02:13.6]} 13. Bf4 {[%clk 0:02:39.5]} 13...
Bd6 {[%clk 0:02:05.2]} 14. Bxd6 {[%clk 0:02:34.3]} 14... Qxd6 {[%clk 0:02:06.1]}
15. O-O {[%clk 0:02:33.3]} 15... O-O {[%clk 0:02:05]} 16. Na3 {[%clk 0:02:31.4]}
16... a6 {[%clk 0:01:42.6]} 17. Qb3 {[%clk 0:02:20.7]} 17... Ng4 {[%clk
0:01:37.9]} 18. Ng3 {[%clk 0:02:18.3]} 18... Qh6 {[%clk 0:01:35.1]} 19. h3
{[%clk 0:02:17.9]} 19... Nge5 {[%clk 0:01:30.1]} 20. Nc4 {[%clk 0:02:13.6]}
20... Nd3 {[%clk 0:01:26.3]} 21. Qxb7 {[%clk 0:01:43]} 21... Rfb8 {[%clk
0:01:07]} 22. Qd7 {[%clk 0:01:39.8]} 22... Rd8 {[%clk 0:01:05.6]} 23. Qf5 {[%clk
0:01:34]} 23... Ne7 {[%clk 0:00:43.1]} 24. Qf3 {[%clk 0:01:29.9]} 24... Ng6
{[%clk 0:00:38.5]} 25. Nf5 {[%clk 0:01:27.8]} 25... Qg5 {[%clk 0:00:34.7]} 26.
Nfd6 {[%clk 0:01:25.7]} 26... Ra7 {[%clk 0:00:30.9]} 27. Qxd3 {[%clk 0:01:20.8]}
27... Nf4 {[%clk 0:00:16.2]} 28. Qe4 {[%clk 0:01:06.1]} 28... Nxh3+ {[%clk
0:00:13.6]} 29. Kh2 {[%clk 0:01:04.1]} 29... Nf4 {[%clk 0:00:14.5]} 30. Rh1
{[%clk 0:00:54.3]} 30... Ne6 {[%clk 0:00:12.9]} 31. Kg1 {[%clk 0:00:52.2]} 31...
g6 {[%clk 0:00:13.8]} 32. Re1 {[%clk 0:00:47.1]} 32... Rad7 {[%clk 0:00:14.7]}
33. Nxf7 {[%clk 0:00:44.9]} 33... Rxf7 {[%clk 0:00:11]} 34. Qxe6 {[%clk
0:00:44]} 34... Rf8 {[%clk 0:00:11.6]} 35. Nd6 {[%clk 0:00:40.7]} 35... Qf4
{[%clk 0:00:08.3]} 36. Rf1 {[%clk 0:00:28.9]} 36... Qf6 {[%clk 0:00:05.2]} 37.
Qd5 {[%clk 0:00:24.7]} 37... Kg7 {[%clk 0:00:03.8]} 38. Nxf7 {[%clk 0:00:23.7]}
38... Rxf7 {[%clk 0:00:02.9]} 39. Rh3 {[%clk 0:00:23.4]} 39... h5 {[%clk
0:00:03.8]} 40. Rg3 {[%clk 0:00:22.1]} 40... Qf4 {[%clk 0:00:03.3]} 41. Qxh5
{[%clk 0:00:19.2]} 41... Rf6 {[%clk 0:00:04.2]} 42. Qd5 {[%clk 0:00:18.3]} 42...
Kh6 {[%clk 0:00:03.4]} 43. Rh3+ {[%clk 0:00:17.5]} 43... Kg7 {[%clk 0:00:01.6]}
44. Qd8 {[%clk 0:00:15.2]} 44... Rf7 {[%clk 0:00:02.5]} 45. Qh8# {[%clk
0:00:14.8]} 1-0

[Event "*** Titled Tuesday Blitz"]
[Site "Chess.com"]
[Date "2020.11.03"]
[Round "7"]
[White "GMKrikor"]
[Black "Crazy_girl99"]
[Result "1-0"]
[WhiteElo "2768"]
[BlackElo "2534"]
[TimeControl "180+1"]
[EndTime "11:21:27 PST"]
[Termination "GMKrikor won on time"]

1. e4 {[%clk 0:03:00.9]} 1... e5 {[%clk 0:02:59.3]} 2. Bc4 {[%clk 0:03:00.4]}
2... Nc6 {[%clk 0:02:59.1]} 3. Nc3 {[%clk 0:03:00.2]} 3... Nf6 {[%clk
0:02:58.6]} 4. d3 {[%clk 0:02:57.2]} 4... Bc5 {[%clk 0:02:56.1]} 5. f4 {[%clk
0:02:56.7]} 5... d6 {[%clk 0:02:55.4]} 6. Nf3 {[%clk 0:02:56.5]} 6... Bg4 {[%clk
0:02:54.4]} 7. Na4 {[%clk 0:02:56.1]} 7... Qe7 {[%clk 0:02:44.3]} 8. Nxc5 {[%clk
0:02:48.5]} 8... dxc5 {[%clk 0:02:45.2]} 9. O-O {[%clk 0:02:38]} 9... O-O-O
{[%clk 0:02:33.5]} 10. h3 {[%clk 0:02:32.2]} 10... Bh5 {[%clk 0:02:09.7]} 11.
Qe1 {[%clk 0:02:11]} 11... exf4 {[%clk 0:01:54.7]} 12. Bxf4 {[%clk 0:02:08.2]}
12... Kb8 {[%clk 0:01:53.8]} 13. Qf2 {[%clk 0:01:44.9]} 13... h6 {[%clk
0:01:49.6]} 14. Be3 {[%clk 0:01:42.9]} 14... b6 {[%clk 0:01:37]} 15. a3 {[%clk
0:01:29.8]} 15... Nd7 {[%clk 0:01:26.8]} 16. b4 {[%clk 0:01:23.2]} 16... cxb4
{[%clk 0:01:03.9]} 17. axb4 {[%clk 0:01:24.1]} 17... Nxb4 {[%clk 0:01:02.6]} 18.
Bb3 {[%clk 0:01:07.8]} 18... Bxf3 {[%clk 0:00:59.4]} 19. Qxf3 {[%clk 0:01:06.6]}
19... f6 {[%clk 0:00:56.2]} 20. Qg3 {[%clk 0:00:59.3]} 20... Rhe8 {[%clk
0:00:43.3]} 21. Ra4 {[%clk 0:00:43.7]} 21... a5 {[%clk 0:00:30.5]} 22. Raa1
{[%clk 0:00:37.2]} 22... Ne5 {[%clk 0:00:26.9]} 23. Bd2 {[%clk 0:00:31.9]} 23...
Nbc6 {[%clk 0:00:15]} 24. Bd5 {[%clk 0:00:26.6]} 24... Rd6 {[%clk 0:00:11.3]}
25. Bc3 {[%clk 0:00:23.4]} 25... Red8 {[%clk 0:00:11]} 26. Rfb1 {[%clk
0:00:23.1]} 26... Rxd5 {[%clk 0:00:10.6]} 27. exd5 {[%clk 0:00:24]} 27... Rxd5
{[%clk 0:00:11]} 28. Kh1 {[%clk 0:00:23.7]} 28... g5 {[%clk 0:00:09.7]} 29. Re1
{[%clk 0:00:22.3]} 29... Qd6 {[%clk 0:00:07.4]} 30. Qf2 {[%clk 0:00:20.5]} 30...
Kb7 {[%clk 0:00:04.4]} 31. Rab1 {[%clk 0:00:20.2]} 31... Nd4 {[%clk 0:00:04.3]}
32. Bb2 {[%clk 0:00:18.4]} 32... a4 {[%clk 0:00:03.8]} 33. Re4 {[%clk
0:00:18.4]} 33... Ndc6 {[%clk 0:00:03.8]} 34. Rxa4 {[%clk 0:00:18.3]} 34... g4
{[%clk 0:00:02.9]} 35. hxg4 {[%clk 0:00:17.2]} 35... Qd7 {[%clk 0:00:03.2]} 36.
Qf5 {[%clk 0:00:16.1]} 36... Qg7 {[%clk 0:00:02.6]} 37. Qe4 {[%clk 0:00:14.4]}
37... Rd6 {[%clk 0:00:01.9]} 38. Rba1 {[%clk 0:00:15]} 38... Kc8 {[%clk
0:00:01.8]} 39. Ra8+ {[%clk 0:00:14.9]} 39... Kd7 {[%clk 0:00:02.3]} 40. Qf5+
{[%clk 0:00:15.3]} 40... Re6 {[%clk 0:00:02.7]} 41. Re8 {[%clk 0:00:14.1]} 41...
Qxg4 {[%clk 0:00:02.1]} 42. Qxg4 {[%clk 0:00:12]} 42... Nxg4 {[%clk 0:00:03]}
43. Rxe6 {[%clk 0:00:12.3]} 43... Kxe6 {[%clk 0:00:03.9]} 44. Re1+ {[%clk
0:00:10.8]} 44... Kf7 {[%clk 0:00:02.3]} 45. Kg1 {[%clk 0:00:11.7]} 45... Nce5
{[%clk 0:00:02.1]} 46. Re4 {[%clk 0:00:11.5]} 46... h5 {[%clk 0:00:01.9]} 47.
Kf1 {[%clk 0:00:10.3]} 47... c5 {[%clk 0:00:02.3]} 48. Ke2 {[%clk 0:00:10.4]}
48... Ke6 {[%clk 0:00:02.5]} 49. Rf4 {[%clk 0:00:10.4]} 49... f5 {[%clk
0:00:02.2]} 50. Rf1 {[%clk 0:00:10.3]} 50... Kd5 {[%clk 0:00:02.7]} 51. Rh1
{[%clk 0:00:10.3]} 1-0

[Event "*** Titled Tuesday Blitz"]
[Site "Chess.com"]
[Date "2020.11.03"]
[Round "7"]
[White "PawnEatingZombie"]
[Black "MYMChessAcademy"]
[Result "1-0"]
[WhiteElo "2158"]
[BlackElo "2045"]
[TimeControl "180+1"]
[EndTime "11:21:27 PST"]
[Termination "PawnEatingZombie won by checkmate"]

1. d4 {[%clk 0:03:00.9]} 1... Nf6 {[%clk 0:02:59.2]} 2. c4 {[%clk 0:03:00.8]}
2... g6 {[%clk 0:02:59]} 3. Nc3 {[%clk 0:03:01.1]} 3... Bg7 {[%clk 0:02:57.8]}
4. e4 {[%clk 0:03:00.8]} 4... d6 {[%clk 0:02:57.7]} 5. Be2 {[%clk 0:03:01.2]}
5... O-O {[%clk 0:02:54.6]} 6. Be3 {[%clk 0:03:01.5]} 6... Nbd7 {[%clk
0:02:49.6]} 7. Nf3 {[%clk 0:03:00.4]} 7... Re8 {[%clk 0:02:41.8]} 8. O-O {[%clk
0:02:59.7]} 8... e5 {[%clk 0:02:40.8]} 9. d5 {[%clk 0:02:58.6]} 9... Ng4 {[%clk
0:02:37.7]} 10. Bg5 {[%clk 0:02:57.8]} 10... f6 {[%clk 0:02:37]} 11. Bc1 {[%clk
0:02:57.8]} 11... Nc5 {[%clk 0:02:31.6]} 12. Ne1 {[%clk 0:02:55.9]} 12... f5
{[%clk 0:02:29.5]} 13. f3 {[%clk 0:02:50.9]} 13... Nf6 {[%clk 0:02:20.8]} 14. b4
{[%clk 0:02:50.2]} 14... Na6 {[%clk 0:02:19.1]} 15. a3 {[%clk 0:02:45.8]} 15...
f4 {[%clk 0:02:18.5]} 16. Nd3 {[%clk 0:02:42.9]} 16... g5 {[%clk 0:02:17.5]} 17.
c5 {[%clk 0:02:39.2]} 17... dxc5 {[%clk 0:02:16.8]} 18. b5 {[%clk 0:02:10.5]}
18... Nb8 {[%clk 0:02:12.4]} 19. Nxc5 {[%clk 0:02:09.3]} 19... h5 {[%clk
0:02:11.4]} 20. Ne6 {[%clk 0:01:57.2]} 20... Bxe6 {[%clk 0:02:09.7]} 21. dxe6
{[%clk 0:01:58.1]} 21... Qe7 {[%clk 0:02:08.7]} 22. Nd5 {[%clk 0:01:47.1]} 22...
Qc5+ {[%clk 0:02:04.5]} 23. Kh1 {[%clk 0:01:47.3]} 23... Nxd5 {[%clk 0:02:03.7]}
24. Qxd5 {[%clk 0:01:44.3]} 24... Qe7 {[%clk 0:02:00.1]} 25. Bc4 {[%clk
0:01:34.8]} 25... c6 {[%clk 0:01:57.8]} 26. bxc6 {[%clk 0:01:25.8]} 26... bxc6
{[%clk 0:01:58.7]} 27. Qa5 {[%clk 0:01:11.6]} 27... g4 {[%clk 0:01:57]} 28. Bb2
{[%clk 0:01:03.7]} 28... g3 {[%clk 0:01:50.2]} 29. h3 {[%clk 0:01:02.7]} 29...
Kh8 {[%clk 0:01:38.5]} 30. Bxe5 {[%clk 0:00:54.3]} 30... c5 {[%clk 0:01:23.3]}
31. Bxg7+ {[%clk 0:00:49.8]} 31... Kxg7 {[%clk 0:01:24.2]} 32. Bd5 {[%clk
0:00:42.8]} 32... Qf6 {[%clk 0:00:56.1]} 33. Bxa8 {[%clk 0:00:38]} 33... Qxe6
{[%clk 0:00:47.5]} 34. Qc3+ {[%clk 0:00:34.4]} 34... Kh7 {[%clk 0:00:43.7]} 35.
Bd5 {[%clk 0:00:34.1]} 35... Qg6 {[%clk 0:00:40.5]} 36. Qxc5 {[%clk 0:00:31.1]}
36... Nd7 {[%clk 0:00:39.5]} 37. Qc7 {[%clk 0:00:30.9]} 37... Re7 {[%clk
0:00:38]} 38. Rad1 {[%clk 0:00:28.9]} 38... Qf6 {[%clk 0:00:34.7]} 39. Qxa7
{[%clk 0:00:20.5]} 39... Ne5 {[%clk 0:00:32.6]} 40. Qd4 {[%clk 0:00:19.1]} 40...
Qh4 {[%clk 0:00:26.2]} 41. a4 {[%clk 0:00:14.8]} 41... Ng4 {[%clk 0:00:23.8]}
42. fxg4 {[%clk 0:00:14]} 42... hxg4 {[%clk 0:00:23.8]} 43. Rxf4 {[%clk
0:00:12.7]} 43... Rg7 {[%clk 0:00:18.9]} 44. Qxg7+ {[%clk 0:00:11.2]} 44... Kxg7
{[%clk 0:00:19.3]} 45. Rxg4+ {[%clk 0:00:11.8]} 45... Qxg4 {[%clk 0:00:19.5]}
46. hxg4 {[%clk 0:00:12.7]} 46... Kf6 {[%clk 0:00:19.8]} 47. a5 {[%clk
0:00:13.2]} 47... Ke5 {[%clk 0:00:20.3]} 48. a6 {[%clk 0:00:14]} 48... Kf4
{[%clk 0:00:20.9]} 49. a7 {[%clk 0:00:14.7]} 49... Kxg4 {[%clk 0:00:21.5]} 50.
a8=Q {[%clk 0:00:15]} 50... Kh4 {[%clk 0:00:22]} 51. Qh8+ {[%clk 0:00:15.2]}
51... Kg4 {[%clk 0:00:22.3]} 52. Qg8+ {[%clk 0:00:15.8]} 52... Kf4 {[%clk
0:00:22.7]} 53. Qf7+ {[%clk 0:00:16.4]} 53... Ke3 {[%clk 0:00:23.3]} 54. Qg6
{[%clk 0:00:16.2]} 54... Ke2 {[%clk 0:00:23.8]} 55. Rg1 {[%clk 0:00:15.9]} 55...
Kf2 {[%clk 0:00:23.7]} 56. Qf5+ {[%clk 0:00:16.6]} 56... Ke2 {[%clk 0:00:24.2]}
57. Qf4 {[%clk 0:00:16.9]} 57... Kd3 {[%clk 0:00:20.9]} 58. Qxg3+ {[%clk
0:00:17.4]} 58... Kd4 {[%clk 0:00:21.8]} 59. Qf4 {[%clk 0:00:17.1]} 59... Kd3
{[%clk 0:00:22.1]} 60. g4 {[%clk 0:00:17.6]} 60... Ke2 {[%clk 0:00:22.7]} 61. g5
{[%clk 0:00:18.2]} 61... Kd3 {[%clk 0:00:22.9]} 62. g6 {[%clk 0:00:18.8]} 62...
Ke2 {[%clk 0:00:23.8]} 63. g7 {[%clk 0:00:19]} 63... Kd3 {[%clk 0:00:24.7]} 64.
Rg3+ {[%clk 0:00:18.7]} 64... Ke2 {[%clk 0:00:25.6]} 65. Qe3+ {[%clk 0:00:18.2]}
65... Kd1 {[%clk 0:00:24.5]} 66. Bb3# {[%clk 0:00:17.7]} 1-0